[Event "Torneo Nuevo Centro. Jornada 10"]
[Site "Chess.com"]
[Date "2020.08.21"]
[Round "6"]
[White "Yuste Valenzuela, Alejandro"]
[Black "Blanco Solaz, Ramón"]
[Result "0-1"]
[WhiteElo "1874"]
[BlackElo "2004"]
[TimeControl "180+2"]
[EndTime "11:33:31 PDT"]
[Termination "Victoria de Rbs77 por abandono"]

1. e4 {[%clk 0:03:01.9]} 1... c5 {[%clk 0:02:59.8]} 2. Nf3 {[%clk 0:03:02.7]}
2... g6 {[%clk 0:03:00.6]} 3. d4 {[%clk 0:03:03.7]} 3... cxd4 {[%clk 0:03:02.5]}
4. Nxd4 {[%clk 0:03:04.5]} 4... Nc6 {[%clk 0:03:03.2]} 5. Nc3 {[%clk 0:03:05.2]}
5... Bg7 {[%clk 0:03:00.5]} 6. Be3 {[%clk 0:03:06.5]} 6... Nf6 {[%clk
0:03:00.2]} 7. Bc4 {[%clk 0:03:04.7]} 7... O-O {[%clk 0:03:00.3]} 8. Bb3 {[%clk
0:03:04]} 8... a5 {[%clk 0:03:00.9]} 9. f3 {[%clk 0:03:03.7]} 9... d5 {[%clk
0:02:51.4]} 10. exd5 {[%clk 0:02:56.8]} 10... Nb4 {[%clk 0:02:51.7]} 11. Qd2
{[%clk 0:02:53.9]} 11... Nbxd5 {[%clk 0:02:51.2]} 12. Nxd5 {[%clk 0:02:55.3]}
12... Nxd5 {[%clk 0:02:52.2]} 13. Bxd5 {[%clk 0:02:50.6]} 13... Qxd5 {[%clk
0:02:53]} 14. O-O-O {[%clk 0:02:49.7]} 14... Qxa2 {[%clk 0:02:53.1]} 15. Qd3
{[%clk 0:02:36.7]} 15... Bf5 {[%clk 0:02:33.4]} 16. Qb3 {[%clk 0:02:23.1]} 16...
Qxb3 {[%clk 0:02:27.5]} 17. Nxb3 {[%clk 0:02:25]} 17... Rfc8 {[%clk 0:02:24.6]}
18. c3 {[%clk 0:02:25.3]} 18... a4 {[%clk 0:02:24.5]} 19. Nc5 {[%clk 0:01:53]}
19... a3 {[%clk 0:02:23.4]} 20. Nxb7 {[%clk 0:01:39.8]} 20... axb2+ {[%clk
0:02:20.5]} 21. Kxb2 {[%clk 0:01:40.6]} 21... Rab8 {[%clk 0:02:19]} 22. Bd4
{[%clk 0:01:12.5]} 22... Rxb7+ {[%clk 0:02:18.7]} 23. Kc1 {[%clk 0:01:13.1]}
23... Bxd4 {[%clk 0:02:16.1]} 24. Rxd4 {[%clk 0:01:14.2]} 24... Rb1+ {[%clk
0:02:17.1]} 25. Kd2 {[%clk 0:01:15.2]} 25... Rxh1 {[%clk 0:02:18.2]} 0

[Event "Torneo Nuevo Centro. Jornada 10"]
[Site "Chess.com"]
[Date "2020.08.21"]
[Round "6"]
[White "Nadal Fajardo, Ricard"]
[Black "Cantero Navarro, Antonio"]
[Result "1-0"]
[WhiteElo "2221"]
[BlackElo "1945"]
[TimeControl "180+2"]
[EndTime "11:34:03 PDT"]
[Termination "Victoria de gomokuniano por abandono"]

1. Nf3 {[%clk 0:03:00]} 1... Nf6 {[%clk 0:02:58.4]} 2. b3 {[%clk 0:03:01.3]}
2... b6 {[%clk 0:02:51.3]} 3. Bb2 {[%clk 0:03:01.9]} 3... Bb7 {[%clk 0:02:49.1]}
4. d3 {[%clk 0:03:02.1]} 4... e6 {[%clk 0:02:41.1]} 5. g3 {[%clk 0:03:02.9]}
5... Be7 {[%clk 0:02:40.4]} 6. Bg2 {[%clk 0:03:03.8]} 6... O-O {[%clk
0:02:40.9]} 7. O-O {[%clk 0:03:05.3]} 7... d6 {[%clk 0:02:41.5]} 8. e4 {[%clk
0:03:05.2]} 8... Nbd7 {[%clk 0:02:42.1]} 9. Nbd2 {[%clk 0:03:03.4]} 9... a5
{[%clk 0:02:15.1]} 10. a3 {[%clk 0:02:57]} 10... c5 {[%clk 0:02:05.1]} 11. a4
{[%clk 0:02:53.3]} 11... d5 {[%clk 0:02:03.6]} 12. Re1 {[%clk 0:02:50.8]} 12...
dxe4 {[%clk 0:01:55.8]} 13. dxe4 {[%clk 0:02:52.4]} 13... e5 {[%clk 0:01:50.3]}
14. Nxe5 {[%clk 0:02:38.6]} 14... Nxe5 {[%clk 0:01:49.2]} 15. Bxe5 {[%clk
0:02:40.5]} 15... Qd7 {[%clk 0:01:41.3]} 16. Nc4 {[%clk 0:02:36.2]} 16... Qe6
{[%clk 0:01:38.2]} 17. Qe2 {[%clk 0:01:53.9]} 17... Ng4 {[%clk 0:01:33.4]} 18.
Bh3 {[%clk 0:01:42.7]} 18... f5 {[%clk 0:01:06.2]} 19. exf5 {[%clk 0:01:42.7]}
19... Qd6 {[%clk 0:01:07]} 20. Bxd6 {[%clk 0:01:42.3]} 1

[Event "Torneo Nuevo Centro. Jornada 10"]
[Site "Chess.com"]
[Date "2020.08.21"]
[Round "6"]
[White "Rausell Taberner, Diego"]
[Black "Ortiz Benavent, Alba"]
[Result "0-1"]
[WhiteElo "671"]
[BlackElo "1208"]
[TimeControl "180+2"]
[EndTime "11:34:37 PDT"]
[Termination "Victoria de or20 por jaque mate"]

1. e4 {[%clk 0:03:00.6]} 1... e5 {[%clk 0:03:00.3]} 2. Nf3 {[%clk 0:03:01.8]}
2... Nc6 {[%clk 0:03:00.4]} 3. Nc3 {[%clk 0:03:01.6]} 3... Bc5 {[%clk
0:02:58.9]} 4. Bc4 {[%clk 0:03:00]} 4... d6 {[%clk 0:02:51.1]} 5. d3 {[%clk
0:02:57.4]} 5... Nf6 {[%clk 0:02:51.2]} 6. Ng5 {[%clk 0:02:55.1]} 6... O-O
{[%clk 0:02:48.6]} 7. O-O {[%clk 0:02:52.1]} 7... h6 {[%clk 0:02:45.2]} 8. Nf3
{[%clk 0:02:47.5]} 8... Nd4 {[%clk 0:02:42.8]} 9. Nb5 {[%clk 0:02:43.9]} 9...
Nxb5 {[%clk 0:02:31.7]} 10. Bxb5 {[%clk 0:02:43]} 10... Bd7 {[%clk 0:02:31.1]}
11. Bd2 {[%clk 0:02:38.6]} 11... Bxb5 {[%clk 0:02:31]} 12. Ba5 {[%clk 0:02:36]}
12... Bb6 {[%clk 0:02:29.7]} 13. Bb4 {[%clk 0:02:35.3]} 13... Bc5 {[%clk
0:02:26.7]} 14. Ba5 {[%clk 0:02:33.7]} 14... Bb6 {[%clk 0:02:26.4]} 15. Bb4
{[%clk 0:02:30.8]} 15... Re8 {[%clk 0:02:25.1]} 16. b3 {[%clk 0:02:21.2]} 16...
a5 {[%clk 0:02:10.1]} 17. Ba3 {[%clk 0:02:15.6]} 17... Bc5 {[%clk 0:02:08.6]}
18. Bb2 {[%clk 0:02:12.3]} 18... Ng4 {[%clk 0:01:58.9]} 19. h3 {[%clk 0:02:09]}
19... Nxf2 {[%clk 0:01:53.9]} 20. Qd2 {[%clk 0:02:04.9]} 20... Qf6 {[%clk
0:01:48]} 21. Kh2 {[%clk 0:01:49]} 21... Qf4+ {[%clk 0:01:34.4]} 22. Kg1 {[%clk
0:01:43.6]} 22... Qxd2 {[%clk 0:01:27.6]} 23. Bc1 {[%clk 0:01:36.9]} 23... Ng4+
{[%clk 0:01:22.6]} 24. Rf2 {[%clk 0:01:21]} 24... Bxf2+ {[%clk 0:01:21.2]} 25.
Kh1 {[%clk 0:01:17.7]} 25... Qd1+ {[%clk 0:01:20.8]} 26. Ne1 {[%clk 0:01:16.8]}
26... Qxe1# {[%clk 0:01:21]} 0

[Event "Torneo Nuevo Centro. Jornada 10"]
[Site "Chess.com"]
[Date "2020.08.21"]
[Round "6"]
[White "Bosch Jordà, Ricard"]
[Black "Ledezma Fortes, Jose Manuel"]
[Result "1-0"]
[WhiteElo "1943"]
[BlackElo "1789"]
[TimeControl "180+2"]
[EndTime "11:35:10 PDT"]
[Termination "Victoria de UltimateLimo por abandono"]

1. e4 {[%clk 0:03:01.9]} 1... c6 {[%clk 0:03:00.6]} 2. d4 {[%clk 0:03:00.4]}
2... h6 {[%clk 0:03:01.1]} 3. Nf3 {[%clk 0:02:59]} 3... d5 {[%clk 0:03:01.6]} 4.
exd5 {[%clk 0:02:50.5]} 4... cxd5 {[%clk 0:03:01.4]} 5. Bd3 {[%clk 0:02:49.6]}
5... Nf6 {[%clk 0:03:00.7]} 6. h3 {[%clk 0:02:49.8]} 6... Nc6 {[%clk 0:03:01.3]}
7. c3 {[%clk 0:02:50.8]} 7... Bd7 {[%clk 0:03:00.9]} 8. O-O {[%clk 0:02:51.5]}
8... e6 {[%clk 0:03:01.5]} 9. Re1 {[%clk 0:02:50]} 9... Be7 {[%clk 0:03:00.6]}
10. Bf4 {[%clk 0:02:50.4]} 10... Rc8 {[%clk 0:03:00.8]} 11. Nbd2 {[%clk
0:02:48.1]} 11... g5 {[%clk 0:02:57.8]} 12. Bh2 {[%clk 0:02:43.4]} 12... Qb6
{[%clk 0:02:54.4]} 13. Rb1 {[%clk 0:02:27]} 13... Rg8 {[%clk 0:02:54.5]} 14. Ne5
{[%clk 0:02:19.1]} 14... Nxe5 {[%clk 0:02:49.7]} 15. dxe5 {[%clk 0:02:15.5]}
15... Bc5 {[%clk 0:02:24.4]} 16. exf6 {[%clk 0:01:52.8]} 16... Bxf2+ {[%clk
0:02:23.9]} 17. Kh1 {[%clk 0:01:53.1]} 17... Bxe1 {[%clk 0:02:24.1]} 18. Qxe1
{[%clk 0:01:52.5]} 18... h5 {[%clk 0:02:16]} 19. Qe5 {[%clk 0:01:16]} 19... Qf2
{[%clk 0:02:03.3]} 20. Bh7 {[%clk 0:01:04.4]} 20... Rh8 {[%clk 0:01:58.6]} 21.
Qxg5 {[%clk 0:01:03.9]} 21... Kd8 {[%clk 0:01:51]} 22. Nf3 {[%clk 0:00:42.2]}
22... Be8 {[%clk 0:01:31.5]} 23. Bd3 {[%clk 0:00:35.4]} 23... Rc5 {[%clk
0:01:21.3]} 24. Bg1 {[%clk 0:00:32.7]} 24... Qg3 {[%clk 0:01:19.6]} 25. Qxg3
{[%clk 0:00:32.6]} 1

[Event "Torneo Nuevo Centro. Jornada 10"]
[Site "Chess.com"]
[Date "2020.08.21"]
[Round "6"]
[White "Mellado Sais, Carles"]
[Black "Mangues Rubia, Alex"]
[Result "0-1"]
[WhiteElo "1395"]
[BlackElo "1556"]
[TimeControl "180+2"]
[EndTime "11:35:11 PDT"]
[Termination "Victoria de Rexher73 por abandono"]

1. d4 {[%clk 0:03:01.9]} 1... d5 {[%clk 0:02:54.4]} 2. Nf3 {[%clk 0:03:00.1]}
2... Nf6 {[%clk 0:02:54.4]} 3. c4 {[%clk 0:02:57.7]} 3... c6 {[%clk 0:02:54.3]}
4. Nc3 {[%clk 0:02:56]} 4... g6 {[%clk 0:02:54.5]} 5. e3 {[%clk 0:02:55]} 5...
Bg7 {[%clk 0:02:55.2]} 6. Bd3 {[%clk 0:02:53.7]} 6... O-O {[%clk 0:02:54.5]} 7.
O-O {[%clk 0:02:51.6]} 7... Bg4 {[%clk 0:02:55.9]} 8. h3 {[%clk 0:02:46.4]} 8...
Bxf3 {[%clk 0:02:56.9]} 9. Qxf3 {[%clk 0:02:44.6]} 9... e6 {[%clk 0:02:58.3]}
10. Re1 {[%clk 0:02:41]} 10... Nbd7 {[%clk 0:02:56.5]} 11. b3 {[%clk 0:02:41.1]}
11... Re8 {[%clk 0:02:54]} 12. Bb2 {[%clk 0:02:40.1]} 12... Qe7 {[%clk 0:02:46]}
13. e4 {[%clk 0:02:37.7]} 13... Nxe4 {[%clk 0:02:08.5]} 14. Nxe4 {[%clk
0:02:32.3]} 14... dxe4 {[%clk 0:02:08.9]} 15. Bxe4 {[%clk 0:02:32.4]} 15... Rad8
{[%clk 0:02:07.4]} 16. Rad1 {[%clk 0:02:30.7]} 16... Nc5 {[%clk 0:01:21.9]} 17.
dxc5 {[%clk 0:02:21]} 17... Bxb2 {[%clk 0:01:21.8]} 18. Qe3 {[%clk 0:02:08.4]}
18... Ba3 {[%clk 0:01:13.9]} 19. Rxd8 {[%clk 0:01:49.8]} 19... Rxd8 {[%clk
0:01:04.5]} 20. f4 {[%clk 0:01:37]} 20... Bxc5 {[%clk 0:00:55.1]} 21. Qxc5
{[%clk 0:01:18.1]} 21... Qxc5+ {[%clk 0:00:57]} 22. Kh2 {[%clk 0:01:13.4]} 22...
Rd2 {[%clk 0:00:56.6]} 23. Rg1 {[%clk 0:01:05.2]} 23... Qf2 {[%clk 0:00:57]} 24.
Rc1 {[%clk 0:01:01.7]} 24... Qxf4+ {[%clk 0:00:57.6]} 25. Kh1 {[%clk 0:01:01]}
25... Qxe4 {[%clk 0:00:59.1]} 26. Rg1 {[%clk 0:00:58.4]} 0

[Event "Torneo Nuevo Centro. Jornada 10"]
[Site "Chess.com"]
[Date "2020.08.21"]
[Round "6"]
[White "Cebolla Ruiz, David"]
[Black "Polikarpov, Anton"]
[Result "1-0"]
[WhiteElo "1549"]
[BlackElo "1264"]
[TimeControl "180+2"]
[EndTime "11:35:14 PDT"]
[Termination "Victoria de Dabelcebolla por abandono"]

1. e4 {[%clk 0:03:01.9]} 1... e5 {[%clk 0:03:00.3]} 2. Nf3 {[%clk 0:03:02.3]}
2... Nc6 {[%clk 0:03:00]} 3. Bb5 {[%clk 0:03:00]} 3... d6 {[%clk 0:02:59.6]} 4.
Bxc6+ {[%clk 0:03:00.3]} 4... bxc6 {[%clk 0:03:00.1]} 5. d4 {[%clk 0:03:01.5]}
5... Bg4 {[%clk 0:02:59.3]} 6. dxe5 {[%clk 0:02:58.8]} 6... Qe7 {[%clk
0:02:56.6]} 7. exd6 {[%clk 0:02:34.9]} 7... Qxe4+ {[%clk 0:02:55.9]} 8. Qe2
{[%clk 0:02:32]} 8... Bxf3 {[%clk 0:02:43.7]} 9. gxf3 {[%clk 0:02:32.7]} 9...
Qxe2+ {[%clk 0:02:43.3]} 10. Kxe2 {[%clk 0:02:33]} 10... cxd6 {[%clk 0:02:43.9]}
11. Bf4 {[%clk 0:02:28.9]} 11... g6 {[%clk 0:02:43.8]} 12. Nc3 {[%clk
0:02:26.7]} 12... Bg7 {[%clk 0:02:44.1]} 13. Bxd6 {[%clk 0:02:26.6]} 13... Nf6
{[%clk 0:02:43.9]} 14. Be5 {[%clk 0:02:24]} 14... O-O {[%clk 0:02:40.6]} 15. Ne4
{[%clk 0:02:18.9]} 15... Nxe4 {[%clk 0:02:38]} 16. Bxg7 {[%clk 0:02:18.9]} 16...
Kxg7 {[%clk 0:02:24.7]} 17. fxe4 {[%clk 0:02:19.1]} 17... Rae8 {[%clk
0:02:25.1]} 18. f3 {[%clk 0:02:15.1]} 18... f5 {[%clk 0:02:24.2]} 19. Kd3 {[%clk
0:02:15.2]} 19... fxe4+ {[%clk 0:02:24.7]} 20. fxe4 {[%clk 0:02:15.1]} 20...
Rf3+ {[%clk 0:02:24.9]} 21. Ke2 {[%clk 0:02:13.3]} 21... Rf4 {[%clk 0:02:23.1]}
22. Kd3 {[%clk 0:02:07.4]} 22... Rfxe4 {[%clk 0:02:23.5]} 23. Rad1 {[%clk
0:02:02.3]} 23... Kf6 {[%clk 0:02:25.4]} 24. Rhf1+ {[%clk 0:02:02.2]} 24... Kg7
{[%clk 0:02:27.3]} 25. Kd2 {[%clk 0:02:00.5]} 25... Re2+ {[%clk 0:02:24.3]} 26.
Kc3 {[%clk 0:01:59.1]} 26... R2e3+ {[%clk 0:02:22]} 27. Rd3 {[%clk 0:01:59.9]}
27... Re2 {[%clk 0:02:20.5]} 28. h3 {[%clk 0:01:53.9]} 28... a6 {[%clk 0:02:17]}
29. Rd7+ {[%clk 0:01:53.9]} 29... Kh6 {[%clk 0:02:14.6]} 30. Rff7 {[%clk
0:01:42.9]} 30... R2e3+ {[%clk 0:02:11.9]} 31. Rd3 {[%clk 0:01:43.7]} 31... R3e7
{[%clk 0:02:03.5]} 32. Rd7 {[%clk 0:01:39.6]} 32... Re3+ {[%clk 0:01:55.7]} 33.
Rd3 {[%clk 0:01:38.4]} 33... R3e7 {[%clk 0:01:54.2]} 34. Rf6 {[%clk 0:01:34.6]}
34... Re6 {[%clk 0:01:49.7]} 35. Rxe6 {[%clk 0:01:23.3]} 35... Re7 {[%clk
0:01:50]} 36. Rxe7 {[%clk 0:01:23.4]} 1

[Event "Torneo Nuevo Centro. Jornada 10"]
[Site "Chess.com"]
[Date "2020.08.21"]
[Round "6"]
[White "Roca Cruz, Rafael"]
[Black "Garrido Silos, Pablo"]
[Result "1-0"]
[WhiteElo "1822"]
[BlackElo "1454"]
[TimeControl "180+2"]
[EndTime "11:35:28 PDT"]
[Termination "Victoria de RafaRocaCruz por jaque mate"]

1. d4 {[%clk 0:03:00]} 1... Nf6 {[%clk 0:03:00.2]} 2. c4 {[%clk 0:02:49.2]} 2...
g6 {[%clk 0:03:00.1]} 3. Nc3 {[%clk 0:02:49.9]} 3... Bg7 {[%clk 0:03:00.8]} 4.
e4 {[%clk 0:02:50.1]} 4... c6 {[%clk 0:03:01.4]} 5. f3 {[%clk 0:02:48.9]} 5...
d6 {[%clk 0:03:02]} 6. Bg5 {[%clk 0:02:46]} 6... O-O {[%clk 0:03:02.4]} 7. Qd2
{[%clk 0:02:42.2]} 7... Nbd7 {[%clk 0:02:58.6]} 8. Bd3 {[%clk 0:02:37.2]} 8...
e5 {[%clk 0:02:54.3]} 9. d5 {[%clk 0:02:37.9]} 9... c5 {[%clk 0:02:52.8]} 10.
Nge2 {[%clk 0:02:37.9]} 10... a6 {[%clk 0:02:46.1]} 11. g4 {[%clk 0:02:38.1]}
11... Qc7 {[%clk 0:02:44.8]} 12. Bh6 {[%clk 0:02:31.7]} 12... Re8 {[%clk
0:02:41.7]} 13. Bxg7 {[%clk 0:02:32.2]} 13... Kxg7 {[%clk 0:02:41.3]} 14. h4
{[%clk 0:02:32.8]} 14... h6 {[%clk 0:02:17.7]} 15. Ng3 {[%clk 0:02:30.4]} 15...
Nb6 {[%clk 0:02:15.6]} 16. g5 {[%clk 0:02:18.1]} 16... hxg5 {[%clk 0:02:12.8]}
17. hxg5 {[%clk 0:02:19]} 17... Nh7 {[%clk 0:02:07.4]} 18. O-O-O {[%clk
0:00:29.9]} 18... Qe7 {[%clk 0:02:02.4]} 19. Rxh7+ {[%clk 0:00:23.3]} 19... Kxh7
{[%clk 0:01:54.9]} 20. Qh2+ {[%clk 0:00:23.5]} 20... Kg7 {[%clk 0:01:54.7]} 21.
Qh6+ {[%clk 0:00:24.4]} 21... Kg8 {[%clk 0:01:51.8]} 22. Rh1 {[%clk 0:00:24.8]}
22... f6 {[%clk 0:01:20.1]} 23. Qh8+ {[%clk 0:00:20.3]} 23... Kf7 {[%clk
0:01:15.1]} 24. Rh7# {[%clk 0:00:18.4]} 1

[Event "Torneo Nuevo Centro. Jornada 10"]
[Site "Chess.com"]
[Date "2020.08.21"]
[Round "6"]
[White "Camison Zornoza, Cesar"]
[Black "Castellano López, Javier"]
[Result "0-1"]
[WhiteElo "1788"]
[BlackElo "1905"]
[TimeControl "180+2"]
[EndTime "11:35:45 PDT"]
[Termination "Victoria de its_xavi_official por abandono"]

1. e4 {[%clk 0:03:01.9]} 1... d5 {[%clk 0:03:01]} 2. e5 {[%clk 0:03:01.4]} 2...
Bf5 {[%clk 0:03:00.1]} 3. d4 {[%clk 0:03:01.9]} 3... e6 {[%clk 0:03:00.8]} 4.
Bd3 {[%clk 0:02:55.6]} 4... Bxd3 {[%clk 0:03:00.4]} 5. Qxd3 {[%clk 0:02:56.3]}
5... c5 {[%clk 0:02:54.9]} 6. c3 {[%clk 0:02:56.8]} 6... Nc6 {[%clk 0:02:55.5]}
7. a3 {[%clk 0:02:45.5]} 7... Nge7 {[%clk 0:02:47.6]} 8. Nf3 {[%clk 0:02:39]}
8... Nf5 {[%clk 0:02:40.7]} 9. O-O {[%clk 0:02:39.3]} 9... h5 {[%clk 0:02:40.9]}
10. b4 {[%clk 0:02:25.5]} 10... cxd4 {[%clk 0:02:35.6]} 11. cxd4 {[%clk
0:02:24.9]} 11... Qb6 {[%clk 0:02:33.2]} 12. Be3 {[%clk 0:02:23.1]} 12... Be7
{[%clk 0:02:33.3]} 13. Nc3 {[%clk 0:02:20.9]} 13... a6 {[%clk 0:02:31.3]} 14.
Na4 {[%clk 0:02:19.2]} 14... Qb5 {[%clk 0:02:31.1]} 15. Qxb5 {[%clk 0:02:17.9]}
15... axb5 {[%clk 0:02:33]} 16. Nc5 {[%clk 0:02:16]} 16... Bxc5 {[%clk
0:02:33.8]} 17. bxc5 {[%clk 0:02:15.8]} 17... Ra5 {[%clk 0:02:26.3]} 18. Rfb1
{[%clk 0:02:13]} 18... Kd7 {[%clk 0:02:18.5]} 19. h3 {[%clk 0:01:57.8]} 19...
Rha8 {[%clk 0:02:16.1]} 20. Rb3 {[%clk 0:01:55]} 20... b4 {[%clk 0:02:14.7]} 21.
Rab1 {[%clk 0:01:44.7]} 21... Rxa3 {[%clk 0:02:10.6]} 22. Rxb4 {[%clk
0:01:35.5]} 22... Nxb4 {[%clk 0:02:10.2]} 23. Rxb4 {[%clk 0:01:36.3]} 23... Nxe3
{[%clk 0:02:09.7]} 24. fxe3 {[%clk 0:01:36.8]} 24... R8a7 {[%clk 0:02:04.9]} 25.
Ng5 {[%clk 0:01:24.3]} 25... f6 {[%clk 0:01:56.4]} 26. exf6 {[%clk 0:01:21.7]}
26... gxf6 {[%clk 0:01:58.3]} 27. Nf3 {[%clk 0:01:20.7]} 27... Rxe3 {[%clk
0:01:56.6]} 28. Kf2 {[%clk 0:01:16.7]} 28... Rea3 {[%clk 0:01:54.6]} 29. Kg3
{[%clk 0:01:11.7]} 29... e5 {[%clk 0:01:49.8]} 30. dxe5 {[%clk 0:01:09]} 30...
fxe5 {[%clk 0:01:51.7]} 31. Kh4 {[%clk 0:01:04.1]} 31... R3a4 {[%clk 0:01:44.8]}
32. Rxa4 {[%clk 0:01:04.5]} 32... Rxa4+ {[%clk 0:01:46.7]} 33. Kxh5 {[%clk
0:01:05.5]} 33... Ke6 {[%clk 0:01:47.3]} 34. g4 {[%clk 0:01:00.2]} 34... e4
{[%clk 0:01:47.5]} 35. Ng5+ {[%clk 0:00:59.8]} 35... Kf6 {[%clk 0:01:44.5]} 36.
Nh7+ {[%clk 0:00:56.9]} 36... Kg7 {[%clk 0:01:45]} 37. Ng5 {[%clk 0:00:57.8]}
37... e3 {[%clk 0:01:44.9]} 38. Nf3 {[%clk 0:00:55.3]} 38... e2 {[%clk
0:01:44.8]} 39. g5 {[%clk 0:00:50.2]} 39... Ra3 {[%clk 0:01:44.2]} 40. Ne1
{[%clk 0:00:47.4]} 40... Rxh3+ {[%clk 0:01:45]} 41. Kg4 {[%clk 0:00:48.9]} 41...
Rh1 {[%clk 0:01:46.4]} 42. Nf3 {[%clk 0:00:49.7]} 42... e1=Q {[%clk 0:01:47.1]}
43. Nxe1 {[%clk 0:00:50.9]} 43... Rxe1 {[%clk 0:01:48.6]} 0

[Event "Torneo Nuevo Centro. Jornada 10"]
[Site "Chess.com"]
[Date "2020.08.21"]
[Round "6"]
[White "Iravedra Ainkov, Francisco"]
[Black "Mancebo Ibanez, Fernando"]
[Result "1-0"]
[WhiteElo "1827"]
[BlackElo "2086"]
[TimeControl "180+2"]
[EndTime "11:36:06 PDT"]
[Termination "Victoria de frankeIpro por tiempo"]

1. e4 {[%clk 0:03:01.9]} 1... c6 {[%clk 0:02:57.7]} 2. Nf3 {[%clk 0:02:58.4]}
2... d5 {[%clk 0:02:58.9]} 3. Nc3 {[%clk 0:03:00.3]} 3... dxe4 {[%clk 0:03:00]}
4. Nxe4 {[%clk 0:03:00.9]} 4... Nf6 {[%clk 0:03:01.6]} 5. Nxf6+ {[%clk
0:02:53.1]} 5... exf6 {[%clk 0:03:02.8]} 6. Bc4 {[%clk 0:02:53.1]} 6... Bd6
{[%clk 0:02:59.9]} 7. d4 {[%clk 0:02:47.9]} 7... O-O {[%clk 0:03:00.1]} 8. O-O
{[%clk 0:02:47.4]} 8... Bg4 {[%clk 0:02:59]} 9. c3 {[%clk 0:02:47.7]} 9... Nd7
{[%clk 0:02:49]} 10. Be3 {[%clk 0:02:43]} 10... b5 {[%clk 0:02:32]} 11. Bb3
{[%clk 0:02:38.6]} 11... Re8 {[%clk 0:02:13.7]} 12. h3 {[%clk 0:02:38.7]} 12...
Bh5 {[%clk 0:02:12.3]} 13. g4 {[%clk 0:02:33.4]} 13... Bg6 {[%clk 0:02:12.7]}
14. Qd2 {[%clk 0:02:34.1]} 14... Nb6 {[%clk 0:02:01.2]} 15. a4 {[%clk
0:02:25.3]} 15... bxa4 {[%clk 0:01:58.9]} 16. Bxa4 {[%clk 0:02:23.5]} 16... Nc4
{[%clk 0:01:59.2]} 17. Qc1 {[%clk 0:02:13.1]} 17... Be4 {[%clk 0:01:46.9]} 18.
Nd2 {[%clk 0:02:12.2]} 18... Nxd2 {[%clk 0:01:33.9]} 19. Qxd2 {[%clk 0:02:14.1]}
19... f5 {[%clk 0:01:27.5]} 20. Bc2 {[%clk 0:02:07.1]} 20... Qh4 {[%clk
0:01:21.7]} 21. Bxe4 {[%clk 0:02:00.5]} 21... Rxe4 {[%clk 0:01:15.6]} 22. f3
{[%clk 0:01:59.1]} 22... Qg3+ {[%clk 0:01:12.4]} 23. Kh1 {[%clk 0:01:52.8]}
23... Qxh3+ {[%clk 0:01:13.5]} 24. Kg1 {[%clk 0:01:53.3]} 24... Qg3+ {[%clk
0:01:05.2]} 25. Kh1 {[%clk 0:01:52.2]} 25... Rxe3 {[%clk 0:01:04.2]} 26. Rf2
{[%clk 0:01:42.1]} 26... Qh3+ {[%clk 0:01:00.2]} 27. Kg1 {[%clk 0:01:41]} 27...
Rae8 {[%clk 0:00:51]} 28. Raf1 {[%clk 0:01:39.6]} 28... fxg4 {[%clk 0:00:39.3]}
29. fxg4 {[%clk 0:01:38.7]} 29... Qxg4+ {[%clk 0:00:13.7]} 30. Rg2 {[%clk
0:01:36.4]} 30... Qxg2+ {[%clk 0:00:11.9]} 31. Qxg2 {[%clk 0:01:38.3]} 31...
R3e6 {[%clk 0:00:08.5]} 32. Rf5 {[%clk 0:01:27.9]} 32... Rg6 {[%clk 0:00:05.1]}
33. Rg5 {[%clk 0:01:28.5]} 1

[Event "Torneo Nuevo Centro. Jornada 10"]
[Site "Chess.com"]
[Date "2020.08.21"]
[Round "6"]
[White "Birnoveanu, Petru"]
[Black "De Nacimiento Montano, Antonio"]
[Result "0-1"]
[WhiteElo "1720"]
[BlackElo "1856"]
[TimeControl "180+2"]
[EndTime "11:36:20 PDT"]
[Termination "Victoria de Twitch_adn4815 por abandono"]

1. e4 {[%clk 0:03:01.9]} 1... c5 {[%clk 0:02:59]} 2. c4 {[%clk 0:03:00.8]} 2...
e5 {[%clk 0:02:58]} 3. Nc3 {[%clk 0:03:01.4]} 3... Nc6 {[%clk 0:02:55.6]} 4. d3
{[%clk 0:03:01.5]} 4... g6 {[%clk 0:02:56.9]} 5. f4 {[%clk 0:03:00.9]} 5... d6
{[%clk 0:02:54.8]} 6. Nf3 {[%clk 0:03:00.6]} 6... Bg7 {[%clk 0:02:56.1]} 7. fxe5
{[%clk 0:03:00.4]} 7... dxe5 {[%clk 0:02:55.8]} 8. Nd5 {[%clk 0:03:00]} 8... Be6
{[%clk 0:02:28.2]} 9. Be3 {[%clk 0:02:58]} 9... Nd4 {[%clk 0:02:27.2]} 10. Be2
{[%clk 0:02:58.6]} 10... Ne7 {[%clk 0:02:17.2]} 11. O-O {[%clk 0:02:58.1]} 11...
O-O {[%clk 0:02:18.2]} 12. Qd2 {[%clk 0:02:53.5]} 12... Nec6 {[%clk 0:02:12]}
13. Bh6 {[%clk 0:02:50.1]} 13... Nxe2+ {[%clk 0:02:05.7]} 14. Kh1 {[%clk
0:02:42.7]} 14... Ned4 {[%clk 0:01:58.2]} 15. Bxg7 {[%clk 0:02:34.2]} 15... Kxg7
{[%clk 0:01:58.8]} 16. Nxd4 {[%clk 0:02:30.6]} 16... Nxd4 {[%clk 0:01:59.2]} 17.
Nf6 {[%clk 0:02:30.6]} 17... h6 {[%clk 0:01:15.4]} 18. h4 {[%clk 0:02:20.1]}
18... Nc6 {[%clk 0:01:04.6]} 19. h5 {[%clk 0:02:08]} 19... Ne7 {[%clk
0:01:00.5]} 20. hxg6 {[%clk 0:02:06.9]} 20... fxg6 {[%clk 0:01:01.5]} 21. Qf2
{[%clk 0:01:44]} 21... Ng8 {[%clk 0:00:53.1]} 22. Qg3 {[%clk 0:01:41.8]} 22...
Nxf6 {[%clk 0:00:46.9]} 23. Qxe5 {[%clk 0:01:40.6]} 23... Qe7 {[%clk 0:00:47.1]}
24. Rf3 {[%clk 0:01:33.2]} 24... Kh7 {[%clk 0:00:36.8]} 25. Rh3 {[%clk
0:00:47.2]} 25... Rae8 {[%clk 0:00:31.8]} 26. Qg5 {[%clk 0:00:19.3]} 26... Bxh3
{[%clk 0:00:29.6]} 0